fUST/lending_fUST_20250301
["ID","MTS","AMOUNT","RATE_DAILY","PERIOD"]
[354910827,1740812953801,-500.0,0.000355,28]
[354910828,1740812953827,-500.0,0.00036,5]
[354910829,1740812953850,-500.0,0.00036,7]
[354910830,1740812953872,-500.0,0.00036,2]
[354910831,1740812953894,-1000.0,0.00036,7]
[354910832,1740812953916,-203.91797654,0.00036072,2]
[354910833,1740812953937,-6004.36900714,0.0003617,7]
[354910834,1740812953959,-193.43,0.00036189,3]
[354910835,1740812953981,-580.31,0.00036189,3]
[354910836,1740812954004,-500.0,0.00036198,2]
[354910837,1740812954026,-500.39,0.00036199,2]
[354910838,1740812954047,-926.76,0.00036199,2]
[354910839,1740812954070,-1467.78,0.00036199,2]
[354910840,1740812954092,-500.0,0.00036199,2]
[354910841,1740812954114,-536.83,0.00036199,2]
[354910842,1740812954136,-370.08880619,0.00036199,2]
[354910843,1740812954157,-792.68,0.00036199,2]
[354910844,1740812954180,-1376.11,0.00036199,2]
[354910845,1740812954202,-1101.14,0.00036199,2]
[354910846,1740812954224,-539.97,0.00036199,2]
[354910847,1740812954246,-618.82,0.00036199,2]
[354910848,1740812954267,-691.98,0.00036199,2]
[354910849,1740812954289,-500.0,0.00036199,2]
[354910850,1740812954312,-1393.82,0.00036199,2]
[354910851,1740812954334,-994.27,0.00036199,2]
[354910852,1740812954356,-552.11,0.00036199,2]
[354910853,1740812954382,-516.76,0.00036199,2]
[354910854,1740812954404,-519.45,0.00036199,2]
[354910855,1740812954427,-512.64,0.00036199,2]
[354910856,1740812954451,-500.0,0.00036199,2]
[354910857,1740812954472,-500.0,0.00036199,2]
[354910858,1740812954494,-1117.97,0.00036199,2]
[354910859,1740812954515,-500.0,0.00036199,2]
[354910860,1740812954538,-500.0,0.00036199,2]
[354910861,1740812954563,-500.0,0.00036199,2]
[354910862,1740812954585,-622.61,0.00036199,2]
[354910863,1740812954608,-500.0,0.00036199,2]
[354910864,1740812954630,-500.0,0.00036199,2]
[354910865,1740812954652,-1271.91,0.00036199,2]
[354910866,1740812954681,-1921.85,0.00036199,2]
[354910867,1740812954704,-1054.08,0.00036199,2]
[354910868,1740812954726,-1125.24,0.00036199,2]
[354910869,1740812954748,-548.85,0.00036199,2]
[354910870,1740812954771,-873.87,0.00036199,2]
[354910871,1740812954792,-500.0,0.00036199,2]
[354910872,1740812954820,-797.03,0.00036199,2]
[354910873,1740812954842,-500.0,0.00036199,2]
[354910874,1740812954865,-500.0,0.00036199,2]
[354910875,1740812954887,-3465.74,0.00036199,2]
[354910876,1740812954908,-500.0,0.00036199,2]
[354910877,1740812954930,-532.98720396,0.00036199,2]
[354910878,1740812954953,-2165.35,0.00036199,2]
[354910879,1740812954974,-2310.8,0.00036199,2]
[354910880,1740812954998,-500.0,0.00036199,2]
[354910881,1740812955020,-500.0,0.00036199,2]
[354910882,1740812955043,-4502.45,0.00036199,2]
[354910883,1740812955069,-612.64,0.00036199,2]
[354910884,1740812955091,-1369.76,0.00036199,5]
[354910885,1740812955115,-3410.75720722,0.000362,98]
[354910886,1740812955185,-3410.75720719,0.000362,98]
[354910887,1740812955208,-2957.32,0.000362,30]
[354910888,1740812955229,-82695.81213984,0.000362,30]
[354910889,1740812956121,-15865.49786016,0.000362,30]
[354910890,1740812956144,-181.54323171,0.00036336,2]
[354910891,1740812956166,-1163.10810228,0.00036346,2]
[354910892,1740812956189,-500.0,0.00036399,2]
[354910893,1740812956211,-500.0,0.000364,3]
[354910894,1740812956232,-500.0,0.000364,28]
[354910895,1740812956255,-322.64,0.000364,7]
[354910896,1740812956277,-1151.32,0.000364,30]
[354910897,1740812956299,-1248.12,0.00036449,2]
[354910898,1740812956322,-1253.88,0.00036449,2]
[354910899,1740812956344,-500.0,0.00036449,2]
[354910900,1740812956366,-500.0,0.00036449,2]
[354910901,1740812956392,-2435.22,0.00036449,2]
[354910902,1740812956419,-615.49,0.00036449,2]
[354910903,1740812956443,-500.0,0.00036449,2]
[354910904,1740812956468,-837.53,0.00036449,2]
[354910905,1740812956491,-1076.31,0.00036449,2]
[354910906,1740812956514,-739.45,0.00036449,2]
[354910907,1740812956536,-583.33,0.00036449,2]
[354910908,1740812956558,-500.0,0.00036449,2]
[354910909,1740812956581,-24221.43,0.00036449,120]
[354910910,1740812956604,-675.67,0.00036449,2]
[354910911,1740812956627,-500.0,0.0003645,2]
[354910912,1740812956649,-500.0,0.00036472,2]
[354910913,1740812956672,-500.0,0.00036472,2]
[354910914,1740812956695,-500.0,0.00036472,2]
[354910915,1740812956719,-500.0,0.00036472,2]
[354910916,1740812956750,-500.0,0.00036472,2]
[354910917,1740812956773,-500.0,0.00036472,2]
[354910918,1740812956796,-638.84,0.00036472,2]
[354910919,1740812956820,-609.1,0.00036472,2]
[354910920,1740812956842,-500.0,0.00036472,2]
[354910921,1740812956864,-570.56240796,0.00036472,2]
[354910922,1740812956886,-500.0,0.00036472,2]
[354910923,1740812956909,-275.79247018,0.00036472,2]
[354910924,1740812956931,-500.0,0.00036472,2]
[354910925,1740812956953,-500.0,0.00036472,2]
[354910926,1740812956976,-500.0,0.00036472,2]
[354910927,1740812956999,-668.97,0.00036472,2]
[354910928,1740812957022,-514.2,0.00036472,2]
[354910929,1740812957045,-500.0,0.00036472,2]
[354910930,1740812957067,-500.0,0.00036472,2]
[354910931,1740812957090,-622.39,0.00036472,2]
[354910932,1740812957112,-500.0,0.00036472,2]
[354910933,1740812957134,-500.0,0.00036472,2]
[354910934,1740812957160,-948.09,0.00036472,2]
[354910935,1740812957182,-500.0,0.00036472,2]
[354910936,1740812957204,-855.2,0.00036472,2]
[354910937,1740812957226,-414.67952762,0.00036472,2]
[354910938,1740812957248,-500.0,0.00036472,2]
[354910939,1740812957270,-500.0,0.00036472,2]
[354910940,1740812957292,-500.0,0.00036472,2]
[354910941,1740812957315,-721.12,0.00036472,2]
[354910942,1740812957338,-500.0,0.00036472,2]
[354910943,1740812957360,-506.09414124,0.00036472,2]
[354910944,1740812957384,-500.0,0.00036472,2]
[354910945,1740812957406,-500.0,0.00036472,2]
[354910946,1740812957429,-1685.5,0.00036472,2]
[354910947,1740812957451,-513.63,0.00036472,2]
[354910948,1740812957476,-1946.78,0.00036472,2]
[354910949,1740812957497,-504.23838916,0.00036472,2]
[354910950,1740812957520,-500.0,0.00036472,2]
[354910951,1740812957543,-500.0,0.00036472,2]
[354910952,1740812957565,-563.72,0.00036472,2]
[354910953,1740812957588,-500.0,0.00036472,2]
[354910954,1740812957610,-500.0,0.00036472,2]
[354910955,1740812957632,-500.0,0.00036472,2]
[354910956,1740812957654,-500.0,0.00036472,2]
[354910957,1740812957676,-500.0,0.00036472,2]
[354910958,1740812957699,-632.67671971,0.00036472,2]
[354910959,1740812957724,-500.0,0.00036472,2]
[354910960,1740812957747,-541.86674352,0.00036472,2]
[354910961,1740812957768,-500.0,0.00036472,2]
[354910962,1740812957790,-500.0,0.00036472,2]
[354910963,1740812957812,-500.0,0.00036472,2]
[354910964,1740812957834,-522.57,0.00036472,2]
[354910965,1740812957856,-500.0,0.00036472,2]
[354910966,1740812957878,-500.0,0.00036472,2]
[354910967,1740812957901,-500.0,0.00036472,2]
[354910968,1740812957924,-500.0,0.00036472,2]
[354910969,1740812957948,-500.0,0.00036472,2]
[354910970,1740812957971,-500.0,0.00036472,2]
[354910971,1740812957995,-2364.48,0.00036472,2]
[354910972,1740812958018,-642.99,0.00036472,2]
[354910973,1740812958042,-500.0,0.00036472,2]
[354910974,1740812958066,-500.0,0.00036472,2]
[354910975,1740812958089,-1136.22,0.00036472,2]
[354910976,1740812958119,-500.0,0.00036472,2]
[354910977,1740812958142,-545.47,0.00036472,2]
[354910978,1740812958164,-500.0,0.00036472,2]
[354910979,1740812958187,-1436.72,0.00036472,2]
[354910980,1740812958213,-562.78,0.00036472,2]
[354910981,1740812958237,-500.0,0.00036472,2]
[354910982,1740812958259,-200.0,0.00036472,2]
[354910983,1740812958281,-500.0,0.00036472,2]
[354910984,1740812958303,-500.0,0.00036472,2]
[354910985,1740812958326,-409.11509976,0.00036472,2]
[354910986,1740812958348,-563.91,0.00036472,2]
[354910987,1740812958371,-500.0,0.00036472,2]
[354910988,1740812958398,-500.0,0.00036472,2]
[354910989,1740812958422,-500.0,0.00036472,2]
[354910990,1740812958444,-1135.22,0.00036472,2]
[354910991,1740812958468,-1017.81,0.00036472,2]
[354910992,1740812958491,-500.0,0.00036472,2]
[354910993,1740812958513,-500.0,0.00036472,2]
[354910994,1740812958536,-500.0,0.00036472,2]
[354910995,1740812958560,-500.0,0.00036472,2]
[354910996,1740812958584,-500.0,0.00036472,2]
[354910997,1740812958613,-502.38,0.00036472,2]
[354910998,1740812958636,-500.0,0.00036472,2]
[354910999,1740812958658,-746.46,0.00036472,2]
[354911000,1740812958680,-500.0,0.00036472,2]
[354911001,1740812958704,-500.0,0.00036472,2]
[354911002,1740812958727,-3428.6,0.00036472,2]
[354911003,1740812958749,-1591.71,0.00036472,2]
[354911004,1740812958771,-500.0,0.00036472,2]
[354911005,1740812958793,-825.5,0.00036472,2]
[354911006,1740812958815,-500.0,0.00036472,2]
[354911007,1740812958837,-6561.78,0.00036472,2]
[354911008,1740812958860,-9772.2,0.00036472,2]
[354911009,1740812958882,-500.0,0.00036472,2]
[354911010,1740812958904,-2627.6,0.00036472,2]
[354911011,1740812958925,-500.0,0.00036472,2]
[354911012,1740812958946,-454.30551841,0.00036472,2]
[354911013,1740812958968,-552.53,0.00036472,2]
[354911014,1740812958991,-500.0,0.00036472,2]
[354911015,1740812959013,-1048.33,0.00036472,2]
[354911016,1740812959035,-500.0,0.00036472,2]
[354911017,1740812959058,-1424.98,0.00036472,2]
[354911018,1740812959080,-500.0,0.00036472,2]
[354911019,1740812959101,-546.65,0.00036472,2]
[354911020,1740812959123,-500.0,0.00036472,2]
[354911021,1740812959146,-4427.58,0.00036472,2]
[354911022,1740812959168,-608.42,0.00036472,2]
[354911023,1740812959190,-500.0,0.00036472,2]
[354911024,1740812959212,-4018.09,0.00036472,2]
[354911025,1740812959236,-500.0,0.00036472,2]
[354911026,1740812959259,-786.64,0.00036472,2]
[354911027,1740812959280,-500.0,0.00036472,2]
[354911028,1740812959512,-500.0,0.00036472,2]
[354911029,1740812959535,-500.0,0.00036472,2]
[354911030,1740812959557,-874.23,0.00036472,2]
[354911031,1740812959578,-500.0,0.00036472,2]
[354911032,1740812959599,-1942.52,0.00036472,2]
[354911033,1740812959620,-1112.96,0.00036472,2]
[354911034,1740812959641,-2340.43,0.00036472,2]
[354911035,1740812959663,-618.3,0.00036472,2]
[354911036,1740812959684,-1937.24,0.00036472,2]
[354911037,1740812959705,-500.0,0.00036472,2]
[354911038,1740812959728,-8682.46,0.00036472,2]
[354911039,1740812959749,-434.86727908,0.00036472,2]
[354911040,1740812959771,-500.0,0.00036472,2]
[354911041,1740812959793,-500.0,0.00036472,2]
[354911042,1740812959815,-13699.44,0.00036472,2]
[354911043,1740812959836,-500.0,0.00036472,2]
[354911044,1740812959858,-924.54,0.00036472,2]
[354911045,1740812959880,-1518.84,0.00036472,2]
[354911046,1740812959901,-500.0,0.00036472,2]
[354911047,1740812959923,-782.38,0.00036472,2]
[354911048,1740812959951,-523.37,0.00036472,2]
[354911049,1740812959975,-512.61654751,0.00036472,2]
[354911050,1740812959999,-500.0,0.00036472,2]
[354911051,1740812960022,-1718.1,0.00036472,2]
[354911052,1740812960045,-3915.4,0.00036472,2]
[354911053,1740812960069,-500.0,0.00036472,2]
[354911054,1740812960092,-500.0,0.00036472,2]
[354911055,1740812960116,-255.10866884,0.00036472,2]
[354911056,1740812962797,500.0,0.0003,7]
[354911057,1740812966091,-400.0719195,0.00029473,5]
[354911058,1740812966112,-326.56610794,0.00029473,5]
[354911112,1740813032266,-400.0,0.00036198,2]
[354911114,1740813032277,-1161.34,0.00036199,2]
[354911115,1740813032286,-1511.44,0.00036199,2]
[354911117,1740813032296,-1196.11,0.00036199,2]
[354911119,1740813032306,-1201.63,0.00036199,2]
[354911121,1740813032315,-3028.80860323,0.00036199,2]
[354911125,1740813032347,-342.80139677,0.00036199,2]
[354911127,1740813032357,-500.0,0.00036199,2]
[354911129,1740813032367,-533.71,0.00036199,2]
[354911131,1740813032377,-500.0,0.00036199,2]
[354911133,1740813032386,-6288.38,0.00036449,2]
[354911134,1740813032400,-495.08860323,0.00036449,2]
[354911140,1740813037436,612.22,0.00032876,2]
[354911145,1740813037713,612.22,0.0003315,2]
[354911152,1740813038445,612.22,0.00033424,2]
[354911153,1740813038492,612.22,0.00033698,2]
[354911154,1740813038586,612.22,0.00033972,2]
[354911167,1740813040196,-612.22,0.00034246,2]
[354911169,1740813040206,-612.22,0.0003452,2]
[354911170,1740813040215,-612.22,0.00034794,2]
[354911171,1740813040224,-612.22,0.00035068,2]
[354911172,1740813040234,-612.22,0.00035342,2]
[354911173,1740813040243,-24473.7,0.00035616,2]
[354911174,1740813040252,-8869.94139677,0.00036449,2]
[354911175,1740813040261,-2518.12,0.00036449,2]
[354911176,1740813040270,-529.5,0.00036449,2]
[354911177,1740813040280,-500.0,0.00036449,2]
[354911178,1740813040289,-500.0,0.00036449,2]
[354911179,1740813040299,-753.87,0.00036449,2]
[354911180,1740813040308,-3850.67,0.00036449,2]
[354911181,1740813040317,-1861.58,0.00036449,2]
[354911182,1740813040326,-4702.99,0.00036449,2]
[354911183,1740813040336,-500.0,0.00036449,2]
[354911184,1740813040344,-983.873283,0.00036472,120]
[354911185,1740813040356,-327.67133116,0.00036472,2]
[354911186,1740813040365,-500.0,0.00036472,2]
[354911187,1740813040375,-500.0,0.00036472,2]
[354911188,1740813040385,-2733.33,0.00036472,2]
[354911189,1740813040394,-1500.43,0.00036472,2]
[354911190,1740813040406,-605.93,0.00036472,2]
[354911191,1740813040416,-500.0,0.00036472,2]
[354911192,1740813040425,-500.0,0.00036472,2]
[354911193,1740813040434,-666.97,0.00036472,2]
[354911194,1740813040444,-500.0,0.00036472,2]
[354911195,1740813040454,-500.0,0.00036472,2]
[354911196,1740813040463,-648.22420677,0.00036472,2]
[354911197,1740813040472,-994.54,0.00036472,2]
[354911198,1740813040482,-208.33738908,0.00036472,2]
[354911199,1740813040491,-816.01,0.00036472,2]
[354911200,1740813040500,-4374.52,0.00036472,2]
[354911201,1740813040509,-500.0,0.00036472,2]
[354911202,1740813040518,-500.0,0.00036472,2]
[354911203,1740813040528,-541.39862996,0.00036472,2]
[354911204,1740813040537,-2254.32,0.00036472,2]
[354911205,1740813040546,-500.0,0.00036472,2]
[354911206,1740813040555,-205.31632996,0.00036472,2]
[354911207,1740813040565,-500.0,0.00036472,2]
[354911208,1740813040574,-500.0,0.00036472,2]
[354911209,1740813040583,-2371.28,0.00036472,2]
[354911210,1740813040592,-1339.36,0.00036472,2]
[354911211,1740813040601,-634.24,0.00036472,2]
[354911212,1740813040610,-500.0,0.00036472,2]
[354911213,1740813040619,-500.0,0.00036472,2]
[354911214,1740813040629,-814.4,0.00036472,2]
[354911215,1740813040638,-762.98,0.00036472,2]
[354911216,1740813040647,-1428.16,0.00036472,2]
[354911217,1740813040656,-500.0,0.00036472,2]
[354911218,1740813040666,-512.42518886,0.00036472,2]
[354911219,1740813040675,-566.35,0.00036472,2]
[354911220,1740813040684,-500.0,0.00036472,2]
[354911221,1740813040693,-500.0,0.00036472,2]
[354911222,1740813040702,-500.0,0.00036472,2]
[354911223,1740813040711,-500.0,0.00036472,2]
[354911224,1740813040721,-500.0,0.00036472,2]
[354911225,1740813040730,-1794.85,0.00036472,2]
[354911226,1740813040740,-500.0,0.00036472,2]
[354911227,1740813040749,-260.64152162,0.00036472,2]
[354911228,1740813040759,-500.0,0.00036472,2]
[354911229,1740813040768,-500.0,0.00036472,2]
[354911230,1740813040777,-701.56,0.00036472,2]
[354911231,1740813040786,-500.0,0.00036472,2]
[354911232,1740813040796,-822.74,0.00036472,2]
[354911233,1740813040805,-2630.23,0.00036472,2]
[354911234,1740813040814,-500.0,0.00036472,2]
[354911235,1740813040824,-500.0,0.00036472,2]
[354911236,1740813040833,-500.0,0.00036472,2]
[354911237,1740813040842,-500.0,0.00036472,2]
[354911238,1740813040851,-387.71786938,0.00036472,2]
[354911239,1740813040860,-500.0,0.00036472,2]
[354911240,1740813040870,-514.9603465,0.00036472,2]
[354911241,1740813040879,-518.16261328,0.00036472,2]
[354911242,1740813040889,-500.0,0.00036472,2]
[354911243,1740813040898,-929.06,0.00036472,2]
[354911244,1740813040908,-875.74,0.00036472,2]
[354911245,1740813040917,-500.0,0.00036472,2]
[354911246,1740813040927,-580.8,0.00036472,2]
[354911247,1740813040937,-500.0,0.00036472,2]
[354911248,1740813040946,-1406.62,0.00036472,2]
[354911249,1740813040955,-837.99,0.00036472,2]
[354911250,1740813040964,-1399.93,0.00036472,2]
[354911251,1740813040974,-475.9621907,0.00036472,2]
[354911252,1740813040984,-514.46,0.00036472,2]
[354911253,1740813040993,-1077.0,0.00036472,2]
[354911254,1740813041003,-1894.71,0.00036472,2]
[354911255,1740813041012,-500.0,0.00036472,2]
[354911256,1740813041022,-500.0,0.00036472,2]
[354911257,1740813041032,-347.41896602,0.00036472,2]
[354911264,1740813043077,-84.13054065,0.00035616,2]
[354911267,1740813045561,500.0,0.00032876,2]
[354911272,1740813045818,500.0,0.0003315,2]
[354911273,1740813046068,500.0,0.00033424,2]
[354911275,1740813046160,-528.08945935,0.00035616,2]
[354911276,1740813046170,-554.88554055,0.0003589,2]
[354911277,1740813046350,500.0,0.00033698,2]
[354911278,1740813046592,500.0,0.00033972,2]
[354911279,1740813057497,500.0,0.00032876,2]
[354911280,1740813057765,500.0,0.0003315,2]
[354911281,1740813058042,500.0,0.00033424,2]
[354911282,1740813058307,500.0,0.00033698,2]
[354911283,1740813058681,500.0,0.00033972,2]
[354911284,1740813064265,500.0,0.00032876,2]
[354911285,1740813064509,500.0,0.0003315,2]
[354911286,1740813064767,500.0,0.00033424,2]
[354911287,1740813065010,500.0,0.00033698,2]
[354911288,1740813065258,500.0,0.00033972,2]
[354911289,1740813073114,250.0,0.000339,30]
[354911290,1740813073669,250.0,0.000319,30]
[354911291,1740813074408,287.576382,0.000299,30]
[354911292,1740813075766,596.46,0.00032876,2]
[354911293,1740813076158,596.46,0.0003315,2]
[354911294,1740813076264,596.46,0.00033424,2]
[354911295,1740813076510,596.46,0.00033698,2]
[354911296,1740813076945,596.46,0.00033972,2]
[354911297,1740813084404,908.59,0.00032876,2]
[354911298,1740813084695,908.59,0.0003315,2]
[354911299,1740813084952,908.59,0.00033424,2]
[354911300,1740813085190,908.59,0.00033698,2]
[354911301,1740813085446,908.59,0.00033972,2]
[354911302,1740813116448,500.0,0.00032876,2]
[354911303,1740813116766,500.0,0.0003315,2]
[354911304,1740813117001,484.0087645,0.00033424,2]
[354911305,1740813121469,150.0,0.00022082,14]
[354911306,1740813122139,500.0,0.00032876,2]
[354911307,1740813122498,500.0,0.0003315,2]
[354911308,1740813122632,500.0,0.00033424,2]
[354911309,1740813122878,500.0,0.00033698,2]
[354911310,1740813123171,500.0,0.00033972,2]
[354911311,1740813123311,150.0,0.00022082,14]
[354911312,1740813123604,150.0,0.00022082,14]
[354911313,1740813133666,1615.27,0.00032876,2]
[354911314,1740813133909,1615.27,0.0003315,2]
[354911315,1740813135769,500.0,0.00032876,2]
[354911316,1740813136048,500.0,0.0003315,2]
[354911317,1740813138631,500.0,0.00032876,2]
[354911318,1740813138875,500.0,0.0003315,2]
[354911319,1740813302359,150.0,0.00022082,14]
[354911320,1740813302767,277.0,0.00022082,14]
[354911321,1740813303119,554.0,0.00022082,14]
[354911322,1740813303468,699.0,0.00022082,14]
[354911323,1740813303835,1078.0,0.00022082,14]
[354911324,1740813304221,1108.0,0.00022082,14]
[354911325,1740813304799,1711.0,0.00022082,14]
[354911331,1740814035103,-1000.0,0.00024658,2]
[354911332,1740814035130,-7225.26093115,0.00026,3]
[354911333,1740814035163,-242.514,0.00026,3]
[354911334,1740814046146,-662.44972311,0.00026,3]
[354911335,1740814047090,-3676.15096719,0.00026,3]
[354911336,1740814047171,-160.0,0.00026,3]
[354911337,1740814047197,-208.4257981,0.000269,4]
[354911338,1740814047221,-1000.0,0.00027397,2]
[354911339,1740814047247,-208.4257981,0.0002805,4]
[354911340,1740814047273,-208.4257981,0.000292,5]
[354911341,1740814047295,-1956.1255949,0.00029906,2]
[354911342,1740814047318,-1000.0,0.00030137,2]
[354911343,1740814047345,-208.4257981,0.0003035,5]
[354911344,1740814047370,-500.0,0.00030998,2]
[354911345,1740814047396,-500.0,0.00030998,2]
[354911346,1740814047423,-500.0,0.00030998,2]
[354911347,1740814047448,-427.29601157,0.00030998,2]
[354911348,1740814047473,-500.0,0.00030998,2]
[354911349,1740814047496,-500.0,0.00030998,2]
[354911350,1740814047521,-300.0,0.00030998,2]
[354911351,1740814047545,-500.0,0.00030998,2]
[354911352,1740814047569,-500.0,0.00030998,2]
[354911353,1740814047595,-500.0,0.00030998,2]
[354911354,1740814047621,-500.0,0.00030998,2]
[354911355,1740814047646,-500.0,0.00030998,2]
[354911356,1740814047670,-183.11197896,0.00030998,2]
[354911357,1740814047695,-500.0,0.00030998,2]
[354911358,1740814047722,-500.0,0.00030998,2]
[354911359,1740814047749,-500.0,0.00030998,2]
[354911360,1740814047776,-500.0,0.00030998,2]
[354911361,1740814047806,-500.0,0.00030998,2]
[354911362,1740814047833,-500.0,0.00030998,2]
[354911363,1740814047858,-500.0,0.00030998,2]
[354911364,1740814047884,-500.0,0.00030998,2]
[354911365,1740814047909,-500.0,0.00030998,2]
[354911366,1740814047934,-500.0,0.00030998,2]
[354911367,1740814047958,-500.0,0.00030998,2]
[354911368,1740814047982,-500.0,0.00030998,2]
[354911369,1740814048005,-500.0,0.00030998,2]
[354911370,1740814048031,-500.0,0.00030998,2]
[354911371,1740814048053,-892.81050052,0.00031,2]
[354911374,1740814145407,-187.174566,0.00030124,2]
[354911375,1740814145431,-400.0,0.00030997,2]
[354911376,1740814145457,-500.0,0.00030998,2]
[354911377,1740814145480,-535.94966363,0.00030998,2]
[354911378,1740814145503,-500.0,0.00030998,2]
[354911379,1740814145527,-500.0,0.00030998,2]
[354911380,1740814145552,-500.0,0.00030998,2]
[354911381,1740814145576,-500.0,0.00030998,2]
[354911382,1740814145602,-500.0,0.00030998,2]
[354911383,1740814145626,-500.0,0.00030998,2]
[354911384,1740814145650,-500.0,0.00030998,2]
[354911385,1740814145673,-500.0,0.00030998,2]
[354911386,1740814145697,-500.0,0.00030998,2]
[354911387,1740814145722,-500.0,0.00030998,2]
[354911388,1740814145747,-500.0,0.00030998,2]
[354911389,1740814145775,-17335.66678223,0.00031,2]
[354911390,1740814145799,-3860.17702325,0.00031598,2]
[354911391,1740814145822,-9219.51938489,0.00031841,2]
[354911392,1740814146440,-500.0,0.00030998,2]
[354911393,1740814146465,-500.0,0.00030998,2]
[354911394,1740814146491,-500.0,0.00030998,2]
[354911395,1740814146517,-500.0,0.00030998,2]
[354911396,1740814146542,-500.0,0.00030998,2]
[354911397,1740814146567,-500.0,0.00030998,2]
[354911398,1740814146591,-500.0,0.00030998,2]
[354911399,1740814146615,-500.0,0.00030998,2]
[354911400,1740814146640,-500.0,0.00030998,2]
[354911401,1740814146667,-500.0,0.00030998,2]
[354911402,1740814146692,-500.0,0.00030998,2]
[354911403,1740814146717,-500.0,0.00030998,2]
[354911404,1740814146742,-350.94866896,0.00030998,2]
[354911408,1740814155497,-149.05133104,0.00030998,2]
[354911409,1740814155529,-500.0,0.00030998,2]
[354911410,1740814155562,-500.0,0.00030998,2]
[354911411,1740814155592,-500.0,0.00030998,2]
[354911412,1740814155619,-500.0,0.00030998,2]
[354911413,1740814155646,-500.0,0.00030998,2]
[354911414,1740814155676,-500.0,0.00030998,2]
[354911415,1740814155705,-500.0,0.00030998,2]
[354911416,1740814155730,-500.0,0.00030998,2]
[354911417,1740814155761,-500.0,0.00031597,2]
[354911418,1740814155789,-500.0,0.00031597,2]
[354911419,1740814155816,-500.0,0.00031597,2]
[354911420,1740814155844,-500.0,0.00031597,2]
[354911421,1740814155876,-500.0,0.00031597,2]
[354911422,1740814155902,-500.0,0.00031597,2]
[354911423,1740814155930,-500.0,0.00031597,2]
[354911424,1740814155957,-500.0,0.00031597,2]
[354911425,1740814155984,-500.0,0.00031597,2]
[354911426,1740814156011,-500.0,0.00031597,2]
[354911427,1740814156038,-500.0,0.00031597,2]
[354911428,1740814156066,-500.0,0.00031597,2]
[354911429,1740814156095,-500.0,0.00031597,2]
[354911430,1740814156123,-500.0,0.00031597,2]
[354911431,1740814156151,-500.0,0.00031597,2]
[354911432,1740814156180,-500.0,0.00031597,2]
[354911433,1740814156210,-500.0,0.00031597,2]
[354911434,1740814156239,-500.0,0.00031597,2]
[354911435,1740814156266,-500.0,0.00031597,2]
[354911436,1740814156294,-500.0,0.00031597,2]
[354911437,1740814156324,-500.0,0.00031597,2]
[354911438,1740814156353,-500.0,0.00031597,2]
[354911439,1740814156381,-500.0,0.00031597,2]
[354911440,1740814156411,-500.0,0.00031597,2]
[354911441,1740814156440,-500.0,0.00031597,2]